bitfinex/quotes_BTCUSD_20240911
["timestamp","ask_amount","ask_price","bid_price","bid_amount"]
[1726055283062,0.01155013,56860.0,56858.0,0.17594018]
[1726055283527,0.1,56879.0,56858.0,0.17594018]
[1726055283528,0.0024801,56880.0,56879.0,0.03]
[1726055283758,0.0024801,56880.0,56879.0,0.50764018]
[1726055283993,0.0024801,56880.0,56879.0,1.14510625]
[1726055284219,0.0024801,56880.0,56879.0,1.14497104]
[1726055284441,0.0024801,56880.0,56879.0,0.68582042]
[1726055284667,0.0024801,56880.0,56879.0,0.60764018]
[1726055284894,0.0024801,56880.0,56879.0,0.45381372]
[1726055285127,0.0024801,56880.0,56879.0,0.3017]
[1726055285581,0.0024801,56880.0,56879.0,0.3157]
[1726055286242,0.0024801,56880.0,56879.0,0.3027]
[1726055286466,0.0024801,56880.0,56879.0,0.3057]
[1726055286695,0.0024801,56880.0,56879.0,0.004]
[1726055286696,0.23890843,56880.0,56879.0,0.004]
[1726055286927,0.23890843,56880.0,56879.0,0.005]
[1726055286928,0.26279927,56880.0,56879.0,0.005]
[1726055287151,0.26279927,56880.0,56870.0,0.3177]
[1726055287152,0.0372421,56879.0,56870.0,0.3177]
[1726055287364,0.23890843,56880.0,56879.0,0.002]
[1726055287849,0.23890843,56880.0,56879.0,0.001]
[1726055288054,0.23890843,56880.0,56879.0,0.002]
[1726055288734,0.23890843,56880.0,56879.0,0.001]
[1726055288998,0.26279927,56880.0,56879.0,0.002]
[1726055289521,0.26279927,56880.0,56879.0,0.001]
[1726055289746,0.06361304,56880.0,56870.0,0.3177]
[1726055289982,0.0397222,56880.0,56870.0,0.3177]
[1726055290224,0.0397222,56880.0,56879.0,0.001]
[1726055290744,0.0372421,56875.0,56870.0,0.3177]
[1726055291255,0.0372421,56875.0,56871.0,0.00351648]
[1726055291493,0.0372421,56875.0,56871.0,0.03]
[1726055292871,0.0372421,56875.0,56870.0,0.3177]
[1726055293333,0.0372421,56871.0,56864.0,0.3067]
[1726055293558,0.0372421,56870.0,56866.0,0.03]
[1726055295680,0.0372421,56870.0,56864.0,0.3067]
[1726055297099,0.0372421,56870.0,56858.0,0.001636]
[1726055297100,0.0372421,56862.0,56859.0,0.3147]
[1726055298119,0.0372421,56861.0,56858.0,0.001636]
[1726055298332,0.19918623,56859.0,56858.0,0.001636]
[1726055298781,0.41236851,56859.0,56858.0,0.001636]
[1726055299256,0.01055013,56861.0,56858.0,0.36841162]
[1726055299493,0.01055013,56861.0,56859.0,0.00951705]
[1726055299963,0.01055013,56861.0,56859.0,0.00351705]
[1726055301147,0.01055013,56861.0,56859.0,0.00851705]
[1726055301597,0.01055013,56861.0,56859.0,0.01451705]
[1726055302323,0.01055013,56863.0,56859.0,0.19045723]
[1726055302561,0.0372421,56869.0,56859.0,0.19045723]
[1726055302787,0.0372421,56866.0,56859.0,0.19045723]
[1726055303184,0.0372421,56866.0,56859.0,0.18545723]
[1726055303356,0.0372421,56866.0,56859.0,0.18845723]
[1726055304046,0.0372421,56866.0,56859.0,0.18545723]
[1726055304270,0.0372421,56866.0,56859.0,0.17945723]
[1726055304735,0.0372421,56866.0,56859.0,0.18345723]
[1726055304954,0.0372421,56866.0,56859.0,0.17945723]
[1726055305382,0.0372421,56867.0,56859.0,0.17945723]
[1726055306276,0.0372421,56869.0,56859.0,0.17945723]
[1726055306901,0.0372421,56867.0,56859.0,0.17945723]
[1726055307139,0.01055013,56863.0,56859.0,0.17945723]
[1726055307992,0.01055013,56861.0,56859.0,0.17945723]
[1726055308449,0.01055013,56862.0,56859.0,0.17945723]
[1726055308658,0.01055013,56862.0,56859.0,0.18345723]
[1726055309313,0.01055013,56862.0,56859.0,0.17945723]
[1726055309538,0.01055013,56861.0,56859.0,0.18245723]
[1726055310020,0.01055013,56861.0,56859.0,0.18109323]
[1726055310246,0.01055013,56861.0,56859.0,0.18509323]
[1726055310495,0.01055013,56862.0,56859.0,0.18509323]
[1726055310737,0.01055013,56862.0,56859.0,0.18109323]
[1726055310980,0.01055013,56862.0,56859.0,0.18609323]
[1726055311215,0.000818,56870.0,56860.0,0.49794018]
[1726055311474,0.000818,56870.0,56862.0,0.1433]
[1726055311704,0.000818,56870.0,56861.0,0.00351651]
[1726055311705,0.000818,56870.0,56866.0,0.322]
[1726055311940,0.000818,56870.0,56867.0,0.17945633]
[1726055312167,0.000818,56870.0,56866.0,0.322]
[1726055312168,0.000818,56870.0,56868.0,0.1433]
[1726055312389,0.0372421,56869.0,56868.0,0.1433]
[1726055313286,0.000818,56870.0,56862.0,0.1347]
[1726055313287,0.0372421,56868.0,56862.0,0.1347]
[1726055313678,0.01055013,56866.0,56862.0,0.1347]
[1726055313987,0.01055013,56866.0,56863.0,0.01]
[1726055314737,0.01055013,56866.0,56862.0,0.1347]
[1726055314970,0.0372421,56863.0,56859.0,0.001636]
[1726055315193,0.0372421,56863.0,56860.0,0.01]
[1726055315842,0.0372421,56863.0,56862.0,0.011]
[1726055316083,0.06088493,56863.0,56862.0,0.023]
[1726055316305,0.06088493,56863.0,56862.0,0.012]
[1726055316979,0.0372421,56863.0,56862.0,0.012]
[1726055317190,0.0372421,56863.0,56862.0,0.022]
[1726055317417,0.0372421,56863.0,56862.0,0.027]
[1726055317871,0.0372421,56863.0,56862.0,0.015]
[1726055318791,0.0372421,56863.0,56862.0,0.014]
[1726055319012,0.0372421,56863.0,56862.0,0.018]
[1726055319235,0.0372421,56863.0,56862.0,0.014]
[1726055319471,0.0372421,56863.0,56862.0,0.011]
[1726055319990,0.0372421,56863.0,56862.0,0.154]
[1726055320464,0.0372421,56863.0,56862.0,0.153]
[1726055320682,0.0372421,56863.0,56862.0,0.152]
[1726055321372,0.0372421,56863.0,56862.0,0.01]
[1726055321598,0.06088493,56863.0,56862.0,0.01]
[1726055321826,0.0372421,56863.0,56862.0,0.01]
[1726055322280,0.21318228,56863.0,56862.0,0.01]
[1726055322938,0.21318228,56863.0,56862.0,0.013]
[1726055323364,0.21318228,56863.0,56862.0,0.014]
[1726055323582,0.21318228,56863.0,56862.0,0.013]
[1726055324042,0.25496913,56863.0,56862.0,0.013]
[1726055324254,0.27796913,56863.0,56862.0,0.013]
[1726055324466,0.27796913,56863.0,56862.0,0.003]
[1726055325164,0.27796913,56863.0,56862.0,0.007]
[1726055325604,0.0372421,56860.0,56859.0,0.001636]
[1726055325817,0.41236851,56860.0,56859.0,0.001636]
[1726055327367,0.41336851,56860.0,56859.0,0.002636]
[1726055327586,0.41336851,56860.0,56859.0,0.003636]
[1726055330105,0.45755536,56860.0,56859.0,0.003636]
[1726055332153,0.45655536,56860.0,56859.0,0.001636]
[1726055333090,0.45755536,56860.0,56859.0,0.001636]
[1726055335123,0.61955536,56860.0,56859.0,0.001636]
[1726055336244,0.74255536,56860.0,56859.0,0.001636]
[1726055336469,0.74155536,56860.0,56859.0,0.001636]
[1726055336738,0.74255536,56860.0,56859.0,0.001636]
[1726055336967,0.74155536,56860.0,56859.0,0.001636]
[1726055337393,0.74255536,56860.0,56859.0,0.001636]
[1726055338995,0.74805536,56860.0,56859.0,0.001636]
[1726055339257,0.75005536,56860.0,56859.0,0.001636]
[1726055339720,0.78005536,56860.0,56859.0,0.001636]
[1726055339936,0.77805536,56860.0,56859.0,0.001636]
[1726055340166,0.75954008,56860.0,56859.0,0.001636]
[1726055340620,0.52485323,56860.0,56859.0,0.001636]
[1726055340832,0.51336851,56860.0,56859.0,0.001636]
[1726055341516,0.23742833,56860.0,56859.0,0.001636]
[1726055341761,0.0382421,56860.0,56859.0,0.001636]
[1726055341982,0.0382421,56860.0,56859.0,0.140336]
[1726055343112,0.43711134,56860.0,56859.0,0.001636]
[1726055344420,0.41336851,56860.0,56859.0,0.001636]
[1726055351460,0.0382421,56860.0,56859.0,0.001636]
[1726055351699,0.0382421,56860.0,56859.0,0.135736]
[1726055351988,0.0382421,56860.0,56859.0,0.312036]
[1726055352854,0.0382421,56860.0,56859.0,0.322036]
[1726055353071,0.001,56860.0,56859.0,0.322036]
[1726055353529,0.001,56860.0,56859.0,0.37446583]
[1726055353748,0.000818,56870.0,56859.0,0.58073434]
[1726055353988,0.000818,56870.0,56864.0,0.05240337]
[1726055354215,0.01055013,56869.0,56866.0,0.3104]
[1726055354452,0.0372421,56869.0,56867.0,0.3104]
[1726055354675,0.01055013,56869.0,56868.0,0.1341]
[1726055355111,0.0372421,56869.0,56868.0,0.1441]
[1726055356466,0.0372421,56869.0,56868.0,0.01]
[1726055356467,0.23642833,56869.0,56868.0,0.01]
[1726055356704,0.43617494,56869.0,56868.0,0.016]
[1726055357121,0.43617494,56869.0,56868.0,0.01]
[1726055357329,0.43617494,56869.0,56868.0,0.022]
[1726055357548,0.43617494,56869.0,56868.0,0.015]
[1726055357764,0.41236851,56869.0,56868.0,0.005]
[1726055357994,0.43536851,56869.0,56868.0,0.007]
[1726055358209,0.43536851,56869.0,56868.0,0.005]
[1726055358622,0.43636851,56869.0,56868.0,0.005]
[1726055358850,0.0372421,56860.0,56859.0,0.001636]
[1726055360046,0.0372421,56860.0,56859.0,0.006636]
[1726055360957,0.0372421,56860.0,56859.0,0.012636]
[1726055361190,0.0372421,56860.0,56859.0,0.006636]
[1726055361676,0.0372421,56860.0,56859.0,0.010636]
[1726055361895,0.0372421,56860.0,56859.0,0.001636]
[1726055362127,0.0372421,56860.0,56859.0,0.004636]
[1726055362128,0.0382421,56860.0,56859.0,0.004636]
[1726055362582,0.23792511,56860.0,56859.0,0.001636]
[1726055362805,0.26092511,56860.0,56859.0,0.001636]
[1726055363038,0.26092511,56860.0,56859.0,0.002636]
[1726055363477,0.26092511,56860.0,56859.0,0.001636]
[1726055364166,0.25992511,56860.0,56859.0,0.001636]
[1726055364398,0.56512511,56860.0,56859.0,0.002636]
[1726055364664,0.56882511,56860.0,56859.0,0.002636]
[1726055364888,0.56982511,56860.0,56859.0,0.001636]
[1726055365114,0.57082511,56860.0,56859.0,0.001636]
[1726055365331,0.56982511,56860.0,56859.0,0.001636]
[1726055365775,0.57082511,56860.0,56859.0,0.002636]
[1726055366046,0.58174738,56860.0,56859.0,0.001636]
[1726055366293,0.58174738,56860.0,56859.0,0.002636]
[1726055366535,0.31318228,56860.0,56859.0,0.001636]
[1726055366764,0.0372421,56860.0,56859.0,0.137036]
[1726055367013,0.0372421,56862.0,56859.0,0.307236]
[1726055367278,0.01055013,56860.0,56859.0,0.307236]
[1726055367487,0.0372421,56860.0,56859.0,0.306236]
[1726055367729,0.0372421,56860.0,56859.0,0.307236]
[1726055367730,0.06088493,56860.0,56859.0,0.307236]
[1726055367975,0.24282511,56860.0,56859.0,0.003636]
[1726055368214,0.51178899,56860.0,56859.0,0.002636]
[1726055368449,0.51178899,56860.0,56859.0,0.003636]
[1726055368450,0.51778899,56860.0,56859.0,0.003636]
[1726055368669,0.51178899,56860.0,56859.0,0.002636]
[1726055368923,0.48668706,56860.0,56859.0,0.002636]
[1726055369152,0.48668706,56860.0,56859.0,0.004636]
[1726055369400,0.48668706,56860.0,56859.0,0.002636]
[1726055369886,0.48668706,56860.0,56859.0,0.001636]
[1726055374613,0.31074688,56860.0,56859.0,0.001636]
[1726055374886,0.035783,56860.0,56859.0,0.001636]
[1726055375325,0.035783,56860.0,56859.0,0.181236]
[1726055375539,0.035783,56860.0,56859.0,0.323936]
[1726055375755,0.035783,56860.0,56859.0,0.333936]
[1726055377198,0.035783,56860.0,56859.0,0.337936]
[1726055378339,0.035783,56860.0,56859.0,0.342936]
[1726055378561,0.31074688,56860.0,56859.0,0.342936]
[1726055379986,0.035783,56860.0,56859.0,0.342936]
[1726055385821,0.035783,56860.0,56859.0,0.332936]
[1726055388322,0.035783,56864.0,56859.0,0.332936]
[1726055388576,0.01055013,56861.0,56860.0,0.1347]
[1726055389040,0.035783,56861.0,56860.0,0.1347]
[1726055389286,0.34182157,56861.0,56860.0,0.1347]
[1726055389526,0.34182157,56861.0,56859.0,0.005636]
[1726055389527,0.035783,56860.0,56859.0,0.005636]
[1726055389784,0.035783,56860.0,56859.0,0.001636]
[1726055390291,0.23577528,56860.0,56859.0,0.001636]
[1726055390508,0.27694683,56860.0,56859.0,0.001636]
[1726055391188,0.27694683,56860.0,56859.0,0.005636]
[1726055391918,0.27694683,56860.0,56859.0,0.009636]
[1726055392385,0.27694683,56860.0,56859.0,0.005636]
[1726055392816,0.27694683,56860.0,56859.0,0.002636]
[1726055393036,0.23677528,56860.0,56859.0,0.003636]
[1726055393261,0.23677528,56860.0,56859.0,0.002636]
[1726055393475,0.23577528,56860.0,56859.0,0.002636]
[1726055394148,0.23677528,56860.0,56859.0,0.003636]
[1726055395023,0.23759328,56860.0,56859.0,0.003636]
[1726055395250,0.45488681,56860.0,56859.0,0.003636]
[1726055395482,0.41353346,56860.0,56859.0,0.003636]
[1726055398215,0.23759328,56860.0,56859.0,0.003636]
[1726055398469,0.23759328,56860.0,56859.0,0.002636]
[1726055398703,0.23759328,56860.0,56859.0,0.003636]
[1726055399396,0.23659328,56860.0,56859.0,0.001636]
[1726055399620,0.23659328,56860.0,56859.0,0.002636]
[1726055399868,0.23759328,56860.0,56859.0,0.003636]
[1726055400129,0.23659328,56860.0,56859.0,0.002636]
[1726055400373,0.23659328,56860.0,56859.0,0.003636]
[1726055400374,0.23759328,56860.0,56859.0,0.003636]
[1726055400607,0.037601,56860.0,56859.0,0.306236]
[1726055401299,0.037601,56860.0,56859.0,0.305236]
[1726055401727,0.037601,56860.0,56859.0,0.306236]
[1726055401945,0.001818,56860.0,56859.0,0.306236]
[1726055402158,0.001818,56860.0,56859.0,0.30875303]
[1726055402387,0.000818,56870.0,56859.0,0.51469319]
[1726055402615,0.000818,56870.0,56868.0,0.05245588]
[1726055402882,0.000818,56870.0,56869.0,0.56092401]
[1726055403090,0.000818,56870.0,56869.0,0.35873904]
[1726055403323,0.000818,56870.0,56869.0,0.3063]
[1726055403538,0.001818,56870.0,56869.0,0.3063]
[1726055403982,0.000818,56870.0,56869.0,0.3063]
[1726055404215,0.000818,56870.0,56869.0,0.3103]
[1726055406545,0.000818,56870.0,56869.0,0.3133]
[1726055410659,0.036601,56870.0,56869.0,0.3133]
[1726055410882,0.23659328,56870.0,56869.0,0.3133]
[1726055411574,0.23659328,56870.0,56869.0,0.1481]
[1726055411575,0.26033441,56870.0,56869.0,0.1481]
[1726055412227,0.26033441,56870.0,56869.0,0.007]
[1726055412684,0.23659328,56870.0,56869.0,0.007]
[1726055413605,0.41253346,56870.0,56869.0,0.007]
[1726055414979,0.41253346,56870.0,56869.0,0.004]
[1726055415220,0.41253346,56870.0,56861.0,0.1322]
[1726055415221,0.035783,56862.0,56861.0,0.1322]
[1726055415454,0.035783,56862.0,56859.0,0.001636]
[1726055415707,0.19999228,56863.0,56859.0,0.001636]
[1726055415708,0.035783,56860.0,56859.0,0.001636]
[1726055415938,0.21172318,56860.0,56859.0,0.001636]
[1726055416829,0.23472318,56860.0,56859.0,0.002636]
[1726055417086,0.28489446,56860.0,56859.0,0.002636]
[1726055417323,0.28489446,56860.0,56859.0,0.003636]
[1726055417782,0.28489446,56860.0,56859.0,0.002636]
[1726055417991,0.28489446,56860.0,56859.0,0.003636]
[1726055418220,0.28489446,56860.0,56859.0,0.001636]
[1726055418434,0.28489446,56860.0,56859.0,0.002636]
[1726055418663,0.28489446,56860.0,56859.0,0.003636]
[1726055419085,0.28489446,56860.0,56859.0,0.002636]
[1726055419086,0.28571246,56860.0,56859.0,0.002636]
[1726055419298,0.28571246,56860.0,56859.0,0.003636]
[1726055419529,0.28771246,56860.0,56859.0,0.003636]
[1726055419769,0.38771246,56860.0,56859.0,0.003636]
[1726055420938,0.38571246,56860.0,56859.0,0.003636]
[1726055421397,0.38571246,56860.0,56859.0,0.001636]
[1726055421617,0.33554118,56860.0,56859.0,0.001636]
[1726055421827,0.33554118,56860.0,56859.0,0.003636]
[1726055422046,0.33554118,56860.0,56859.0,0.002636]
[1726055422310,0.33554118,56860.0,56859.0,0.001636]
[1726055422541,0.33554118,56860.0,56859.0,0.002636]
[1726055422777,0.3932365,56860.0,56859.0,0.002636]
[1726055423713,0.3932365,56860.0,56859.0,0.003636]
[1726055424594,0.036601,56860.0,56859.0,0.139036]
[1726055425265,0.000818,56860.0,56859.0,0.139036]
[1726055425491,0.036601,56860.0,56859.0,0.137036]
[1726055425935,0.036601,56860.0,56859.0,0.138036]
[1726055426614,0.000818,56860.0,56859.0,0.300336]
[1726055426849,0.000818,56860.0,56859.0,0.30385303]
[1726055427080,0.000818,56860.0,56859.0,0.30485303]
[1726055427321,0.000818,56860.0,56859.0,0.31285303]
[1726055427589,0.000818,56860.0,56859.0,0.51484519]
[1726055427809,0.000818,56870.0,56861.0,0.03]
[1726055428034,0.01055013,56868.0,56867.0,0.19999228]
[1726055428300,0.01055013,56868.0,56867.0,0.18594018]
[1726055428541,0.01055013,56868.0,56867.0,0.48364018]
[1726055429272,0.01055013,56868.0,56867.0,0.48964018]
[1726055429507,0.01055013,56868.0,56867.0,0.3137]
[1726055429740,0.000818,56870.0,56867.0,0.3137]
[1726055429964,0.035783,56868.0,56867.0,0.3137]
[1726055430858,0.035783,56868.0,56867.0,0.3117]
[1726055431077,0.035783,56868.0,56867.0,0.3137]
[1726055431314,0.035783,56868.0,56867.0,0.3097]
[1726055431777,0.035783,56868.0,56867.0,0.3117]
[1726055432901,0.036601,56868.0,56867.0,0.3117]
[1726055433824,0.01050201,56868.0,56867.0,0.3117]
[1726055434049,0.04628501,56868.0,56867.0,0.3117]
[1726055436594,0.01050201,56868.0,56867.0,0.3117]
[1726055436813,0.04628501,56868.0,56867.0,0.3117]
[1726055438173,0.02105214,56868.0,56867.0,0.3117]
[1726055438402,0.01136813,56868.0,56867.0,0.3117]
[1726055438651,0.01136813,56868.0,56867.0,0.48764018]
[1726055439792,0.000818,56868.0,56867.0,0.48764018]
[1726055440029,0.01136813,56868.0,56867.0,0.48764018]
[1726055440967,0.01136813,56868.0,56867.0,0.3117]
[1726055447083,0.000818,56868.0,56867.0,0.3117]
[1726055447307,0.01136813,56868.0,56867.0,0.3117]
[1726055452426,0.036601,56868.0,56867.0,0.3117]
[1726055453378,0.01136813,56868.0,56867.0,0.3117]
[1726055455946,0.036601,56868.0,56867.0,0.014]
[1726055456175,0.23659328,56868.0,56867.0,0.014]
[1726055456404,0.26116441,56868.0,56867.0,0.014]
[1726055456660,0.24628499,56868.0,56867.0,0.014]
[1726055456908,0.04629271,56868.0,56867.0,0.014]
[1726055457142,0.04629271,56868.0,56867.0,0.012]
[1726055457357,0.24628499,56868.0,56867.0,0.012]
[1726055457583,0.24628499,56868.0,56867.0,0.013]
[1726055458314,0.24628499,56868.0,56867.0,0.011]
[1726055458970,0.24628499,56868.0,56867.0,0.01]
[1726055459183,0.24628499,56868.0,56867.0,0.011]
[1726055460290,0.44693547,56868.0,56867.0,0.011]
[1726055460729,0.44693547,56868.0,56867.0,0.01]
[1726055461426,0.035783,56861.0,56860.0,0.001636]
[1726055461703,0.23577528,56861.0,56860.0,0.001636]
[1726055461926,0.26899886,56861.0,56860.0,0.001636]
[1726055462191,0.04542905,56861.0,56860.0,0.001636]
[1726055462424,0.24542133,56861.0,56860.0,0.001636]
[1726055464275,0.24642133,56861.0,56860.0,0.001636]
[1726055464508,0.24642133,56861.0,56860.0,0.306336]
[1726055464728,0.24642133,56861.0,56860.0,0.136536]
[1726055464968,0.24542133,56861.0,56860.0,0.136536]
[1726055465210,0.24742133,56861.0,56860.0,0.136536]
[1726055465693,0.04542905,56861.0,56860.0,0.136536]
[1726055465988,0.04642905,56861.0,56860.0,0.136536]
[1726055466207,0.04642905,56861.0,56860.0,0.138536]
[1726055466468,0.001,56861.0,56860.0,0.313936]
[1726055466719,0.01155013,56861.0,56860.0,0.313936]
[1726055467923,0.01055013,56861.0,56860.0,0.313936]
[1726055468867,0.01055013,56867.0,56861.0,0.3058]
[1726055469113,0.01055013,56867.0,56863.0,0.3058]
[1726055469362,0.01055013,56867.0,56863.0,0.34914018]
[1726055469595,0.01055013,56867.0,56864.0,0.1326]
[1726055470282,0.01155013,56867.0,56864.0,0.1326]
[1726055470524,0.01055013,56867.0,56864.0,0.1326]
[1726055470779,0.01355013,56867.0,56864.0,0.1326]
[1726055471262,0.01155013,56867.0,56864.0,0.1326]
[1726055471500,0.01355013,56867.0,56864.0,0.18495749]
[1726055473875,0.01155013,56867.0,56864.0,0.13089373]
[1726055474095,0.01055013,56867.0,56866.0,0.19325749]
[1726055474766,0.01055013,56867.0,56866.0,0.35767437]
[1726055475471,0.01055013,56867.0,56866.0,0.36367437]
[1726055475708,0.01055013,56867.0,56866.0,0.36367409]
[1726055476175,0.000818,56868.0,56867.0,0.1331]
[1726055476423,0.000818,56868.0,56867.0,0.84048817]
[1726055476657,0.000818,56870.0,56867.0,0.73573998]
[1726055476891,0.000818,56870.0,56869.0,0.33086388]
[1726055477183,0.0024801,56880.0,56872.0,0.002]
[1726055477415,0.0024801,56880.0,56874.0,0.03]
[1726055477655,0.0024801,56880.0,56879.0,0.1307226]
[1726055477879,0.0024801,56880.0,56879.0,0.73573946]
[1726055478108,0.01205624,56880.0,56879.0,0.73573946]
[1726055478349,0.0024801,56880.0,56879.0,0.73573946]
[1726055479122,0.0024801,56880.0,56879.0,0.73222381]
[1726055479369,0.0024801,56880.0,56879.0,0.81062645]
[1726055479611,0.0024801,56880.0,56879.0,0.47344018]
[1726055480151,0.0024801,56880.0,56879.0,0.48744018]
[1726055480374,0.0024801,56880.0,56879.0,0.3255]
[1726055481115,0.01231851,56880.0,56879.0,0.3255]
[1726055481349,0.0024801,56880.0,56879.0,0.3255]
[1726055481589,0.01231851,56880.0,56879.0,0.3255]
[1726055482090,0.0024801,56880.0,56879.0,0.3115]
[1726055482537,0.0032981,56880.0,56879.0,0.3115]
[1726055483239,0.0032981,56880.0,56879.0,0.2975]
[1726055483468,0.0032981,56880.0,56879.0,0.3095]
[1726055484216,0.0032981,56880.0,56879.0,0.3225]
[1726055484452,0.0032981,56880.0,56879.0,0.3105]
[1726055484939,0.0032981,56880.0,56879.0,0.3195]
[1726055485207,0.0032981,56880.0,56879.0,0.31001572]
[1726055485432,0.0032981,56880.0,56879.0,0.3175]
[1726055485654,0.0032981,56880.0,56879.0,0.3065]
[1726055486113,0.0032981,56880.0,56879.0,0.3195]
[1726055486360,0.0032981,56880.0,56879.0,0.3105]
[1726055486646,0.0032981,56880.0,56879.0,0.3225]
[1726055487129,0.0032981,56880.0,56879.0,0.3105]
[1726055487624,0.0032981,56880.0,56879.0,0.3085]
[1726055488100,0.0032981,56880.0,56879.0,0.3205]
[1726055497091,0.0032981,56880.0,56879.0,0.49644018]
[1726055498304,0.0032981,56880.0,56879.0,0.72643246]
[1726055498542,0.000818,56885.0,56879.0,0.42893246]
[1726055498796,0.000818,56885.0,56882.0,0.03]
[1726055499052,0.000818,56885.0,56884.0,0.19999228]
[1726055499291,0.000818,56885.0,56884.0,0.76074804]
[1726055499533,0.02523287,56901.0,56884.0,0.76074804]
[1726055499534,0.01055013,56900.0,56887.0,0.03]
[1726055499761,0.01055013,56900.0,56889.0,0.2899]
[1726055500003,0.01055013,56900.0,56890.0,0.46935491]
[1726055500257,0.01055013,56899.0,56890.0,0.49584018]
[1726055500497,0.01055013,56896.0,56890.0,0.46584018]
[1726055501465,0.01055013,56896.0,56890.0,0.47484018]
[1726055502393,0.01055013,56896.0,56890.0,0.48384018]
[1726055508186,0.01136813,56898.0,56890.0,0.48384018]
[1726055508426,0.01055013,56896.0,56890.0,0.48384018]
[1726055508655,0.0032971,56891.0,56890.0,0.48384018]
[1726055513411,0.01055013,56896.0,56890.0,0.48384018]
[1726055513634,0.000818,56898.0,56891.0,0.1339]
[1726055513860,0.000818,56898.0,56893.0,0.19999228]
[1726055514082,0.000818,56898.0,56893.0,0.67604682]
[1726055514572,0.000818,56898.0,56893.0,0.70604682]
[1726055515730,0.000818,56898.0,56893.0,0.76422114]
[1726055516183,0.000818,56898.0,56893.0,1.05141212]
[1726055516636,0.000818,56898.0,56893.0,0.97315063]
[1726055516864,0.000818,56898.0,56893.0,1.07149928]
[1726055518029,0.000818,56898.0,56893.0,2.57149928]
[1726055518738,0.000818,56898.0,56893.0,2.58286885]
[1726055519186,0.000818,56898.0,56893.0,2.59686885]
[1726055519426,0.000818,56898.0,56893.0,2.61086885]
[1726055519730,0.000818,56898.0,56893.0,2.50649851]
[1726055519916,0.000818,56898.0,56893.0,1.00649851]
[1726055521314,0.000818,56898.0,56893.0,1.00849851]
[1726055521533,0.000818,56898.0,56893.0,1.13693433]
[1726055522230,0.000818,56898.0,56893.0,1.10293433]
[1726055522711,0.000818,56898.0,56893.0,1.13093433]
[1726055524538,0.000818,56898.0,56893.0,1.08607209]
[1726055524833,0.000818,56898.0,56893.0,0.8600792]
[1726055525545,0.000818,56898.0,56893.0,0.50054018]
[1726055525811,0.000818,56898.0,56893.0,1.03446696]
[1726055526015,0.000818,56898.0,56897.0,0.032]
[1726055526266,0.0032981,56902.0,56901.0,0.330917]
[1726055526479,0.0032981,56902.0,56901.0,1.08810483]
[1726055526697,0.0021172,56904.0,56903.0,0.054217]
[1726055526912,0.0021172,56904.0,56903.0,0.78811256]
[1726055527172,0.0021172,56904.0,56903.0,0.86511256]
[1726055527449,0.0021172,56904.0,56903.0,1.02153661]
[1726055527909,0.0021172,56904.0,56903.0,0.86511256]
[1726055528156,0.0021172,56904.0,56903.0,2.36511256]
[1726055528618,0.000818,56917.0,56905.0,0.054217]
[1726055528843,0.000818,56917.0,56909.0,0.1305]
[1726055529066,0.000818,56917.0,56910.0,0.17594018]
[1726055529538,0.000818,56917.0,56912.0,0.1564]
[1726055529790,0.000818,56917.0,56913.0,0.17945344]
[1726055530044,0.000818,56917.0,56913.0,0.29664018]
[1726055530957,0.000818,56917.0,56908.0,0.1207]
[1726055531193,0.000818,56917.0,56909.0,0.17594018]
[1726055531426,0.00996773,56913.0,56909.0,0.17594018]
[1726055531650,0.000818,56917.0,56909.0,0.17594018]
[1726055532127,0.000818,56917.0,56910.0,0.009]
[1726055532396,0.00996773,56913.0,56911.0,0.17594018]
[1726055532886,0.0032971,56914.0,56911.0,0.17594018]
[1726055533118,0.00996773,56912.0,56911.0,0.17594018]
[1726055533373,0.0032971,56914.0,56911.0,0.17594018]
[1726055533631,0.01384723,56914.0,56911.0,0.19694018]
[1726055533857,0.00996773,56913.0,56911.0,0.18594018]
[1726055534320,0.00996773,56913.0,56911.0,0.19494018]
[1726055535018,0.00996773,56913.0,56911.0,0.18494018]
[1726055535318,0.00996773,56913.0,56911.0,0.19594018]
[1726055535783,0.00996773,56913.0,56904.0,0.1]
[1726055535784,0.00996773,56913.0,56912.0,0.68963246]
[1726055536257,0.0032971,56914.0,56913.0,0.03]
[1726055536492,0.0032971,56914.0,56913.0,0.43334018]
[1726055536732,0.0032971,56914.0,56913.0,0.4854721]
[1726055537177,0.0032971,56914.0,56913.0,0.43334018]
[1726055537678,0.0032971,56914.0,56913.0,0.4854721]
[1726055538393,0.0032971,56914.0,56913.0,0.43334018]
[1726055538619,0.0032971,56914.0,56913.0,0.44734018]
[1726055539076,0.0032971,56914.0,56913.0,1.94734018]
[1726055539571,0.0032971,56914.0,56913.0,2.09774018]
[1726055539826,0.000818,56917.0,56915.0,0.330417]
[1726055540086,0.000818,56917.0,56915.0,0.88817902]
[1726055540310,0.000818,56917.0,56915.0,0.93908566]
[1726055540789,0.000818,56917.0,56915.0,2.43908566]
[1726055541251,0.000818,56917.0,56915.0,2.38617902]
[1726055541704,0.000818,56917.0,56915.0,0.61618816]
[1726055541947,0.000818,56917.0,56915.0,0.61618664]
[1726055542186,0.000818,56917.0,56915.0,0.56414018]
[1726055542410,0.000818,56917.0,56915.0,0.57814018]
[1726055542934,0.000818,56917.0,56915.0,0.56414018]
[1726055543172,0.000818,56917.0,56915.0,0.42974018]
[1726055543661,0.23659328,56925.0,56915.0,0.28994018]
[1726055543901,0.23659328,56925.0,56916.0,0.17594018]
[1726055544378,0.036601,56925.0,56916.0,0.17594018]
[1726055545647,0.0100332,56924.0,56916.0,0.17594018]
[1726055546616,0.035783,56923.0,56915.0,0.02]
[1726055546859,0.035783,56916.0,56915.0,0.02]
[1726055547096,0.181583,56916.0,56915.0,0.02]
[1726055547338,0.035783,56916.0,56915.0,0.02]
[1726055547576,0.04580681,56916.0,56915.0,0.02]
[1726055548998,0.04580681,56916.0,56915.0,0.028]
[1726055549453,0.24579909,56916.0,56915.0,0.02]
[1726055549899,0.24579909,56916.0,56915.0,0.029]
[1726055549900,0.02057394,56916.0,56915.0,0.029]
[1726055550138,0.02057394,56916.0,56915.0,0.037]
[1726055550675,0.02057394,56916.0,56915.0,0.029]